Cogmind - Beta 13 @@@ ROGUE MODE // 2024.07.02 @ 13:55:46 Player: SunShine214 Result: Destroyed by D-53 Grenadier with Mini Grenade Launcher Performance ------------- Evolutions (0) 0 Regions Visited (4) 800 Robots Destroyed (26) 130 Value Destroyed (565) 565 Prototype IDs (3) 60 Alien Tech Used (0) 0 Bonus (300) 300 TOTAL SCORE: 1855 Bonus ------- Aligned with FarCom 300 Cogmind --------- Core Integrity 0/250 Matter 202/300 Energy 57/100 System Corruption 7% Temperature Cool (25) Movement Core (750) Ox14 Location -9/Mines Parts ------- > --- POWER (1) -------- (None) > --- PROPULSION (2) --- Light Treads (fused) > --- UTILITY (2) ------ Large Storage Unit Trap Reconfigurator > --- WEAPON (2) ------- Firepult > --- INVENTORY (15) --- Ion Engine Ion Engine Aluminum Leg Aluminum Leg Aluminum Leg Improved Heat Sink Large Storage Unit High-capacity Matter Pod (200) Improved Targeting Computer Improved Targeting Computer Power Shielding Medium Armor Plating Medium Armor Plating Beam Rifle Assault Rifle Peak State ------------ > --- POWER ------------ Light Ion Engine > --- PROPULSION ------- Light Treads Compact Wheel > --- UTILITY ---------- Large Storage Unit Trap Reconfigurator > --- WEAPON ----------- Firepult > --- INVENTORY -------- Ion Engine Ion Engine Aluminum Leg Aluminum Leg Aluminum Leg Improved Heat Sink Large Storage Unit High-capacity Matter Pod Improved Targeting Computer Improved Targeting Computer Power Shielding Medium Armor Plating Medium Armor Plating Beam Rifle Assault Rifle [Rating: 35] Favorites ----------- Power Light Ion Engine Engine Light Ion Engine Propulsion Light Treads Treads Light Treads Wheel Compact Wheel Hover Unit Backup Propulsion I Utility Large Storage Unit Device Trap Reconfigurator Storage Large Storage Unit Processor Improved Targeting Computer Hackware Authchip [R/Combat] Protection Medium Armor Plating Weapon Beam Rifle Energy Gun Beam Rifle Energy Cannon Firepult Ballistic Gun Light Assault Rifle Build | -11 -10 -10 -10 -9 ------- Run | Yrd Mat Min Exi Min Slots Evolved . | . . . . . Power . | . . . . . Propulsion . | . . . . . Utility . | . . . . . Weapon . | . . . . . Parts Attached 36 | 6 18 9 3 . Power 7 | 1 5 1 . . Engine 7 | 1 5 1 . . Core . | . . . . . Reactor . | . . . . . Propulsion 7 | 2 4 1 . . Treads 6 | 2 4 . . . Leg . | . . . . . Wheel 1 | . . 1 . . Hover . | . . . . . Flight . | . . . . . Utility 9 | 1 4 2 2 . Device 1 | . . . 1 . Storage 5 | 1 2 1 1 . Processor 1 | . 1 . . . Hackware 1 | . 1 . . . Protection 1 | . . 1 . . Artifact . | . . . . . Weapon 13 | 2 5 5 1 . Energy Gun 8 | 2 4 2 . . Energy Cannon 3 | . 1 1 1 . Ballistic Gun 2 | . . 2 . . Ballistic Cannon . | . . . . . Launcher . | . . . . . Special Weapon . | . . . . . Impact Weapon . | . . . . . Slashing Weapon . | . . . . . Piercing Weapon . | . . . . . Special Melee Weapon . | . . . . . Unidentified Prototypes 3 | . . . 3 . Corrupted Parts 1 | . 1 . . . System Corruption 5 | . 5 . . . Parts Lost 4 | . 1 2 . 1 Power 1 | . . 1 . . Propulsion 2 | . . 1 . 1 Utility . | . . . . . Weapon 1 | . 1 . . . Highest Loss Streak 1 | . 1 1 . 1 To Critical Strikes . | . . . . . Average Slot Usage (%) 92 | . 94 95 89 76 Engine 13 | . 12 12 14 8 Treads 21 | . 27 14 14 14 Wheel 6 | . . 12 14 11 Device 3 | . . . 10 14 Storage 15 | . 17 14 14 14 Processor 5 | . 8 12 . . Protection 1 | . . 1 3 . Energy Gun 14 | . 21 12 3 . Energy Cannon 6 | . 4 7 10 14 Ballistic Gun 1 | . . 6 3 . Naked Turns . | . . . . . Heaviest Build 46 | 14 35 33 46 46 Greatest Support 40 | 40 40 20 16 16 Greatest Overweight (x) 14 | 1 4 2 2 14 Average Overweight (x) . | . . 1 1 2 Largest Inventory Capacity 15 | 8 15 15 15 15 Average Capacity 13 | 7 13 15 15 15 Most Carried 15 | 5 15 15 15 15 Average Carried 12 | 2 12 14 14 15 Final Capacity 15 | 8 15 15 15 15 Final Carried 15 | 5 15 14 15 15 Class Distribution -------------------- 100% | Mutant Dominant Class ---------------- Mutant | -10/Materials Mutant | -10/Mines Mutant | -10/Exiles Mutant | -9/Mines Resources | -11 -10 -10 -10 -9 ----------- Run | Yrd Mat Min Exi Min Matter Collected 882 | 223 457 202 . . Remotely . | . . . . . Salvage Created 789 | . 584 185 . 20 Parts 48 | . 32 14 . 2 Haulers Intercepted 1 | . 1 . . . Recyclers Shooed 1 | . 1 . . . Parts Field Recycled . | . . . . . Retrieved Matter . | . . . . . Parts Self-Destructed . | . . . . . Prevented . | . . . . . Kills | -11 -10 -10 -10 -9 ------- Run | Yrd Mat Min Exi Min Combat Hostiles Destroyed 20 | . 12 8 . . Guns 18 | . 12 6 . . Cannons 2 | . . 2 . . Classes Destroyed 7 | . 6 . . 1 Builder 1 | . 1 . . . Tunneler 1 | . . . . 1 Hauler 1 | . 1 . . . Operator 1 | . 1 . . . Watcher 2 | . 2 . . . Swarmer 9 | . 3 6 . . Grunt 11 | . 9 2 . . Best Kill Streak 7 | . 7 6 . 1 Combat Bots Only 6 | . 6 6 . . Max Kills in Single Turn 2 | . 2 1 . 1 Gunslinging . | . . . . . Exploded . | . . . . . Melee . | . . . . . Uniques/NPCs Destroyed . | . . . . . Combat | -11 -10 -10 -10 -9 -------- Run | Yrd Mat Min Exi Min Hostile Shots Fired 125 | . 60 62 . 3 Missed 24 | . 14 10 . . Damage Taken 1120 | . 550 465 . 105 Core 259 | . 131 99 . 29 Absorbed by Shields . | . . . . . Regen/Repaired (Parts) 107 | . 107 . . . Core Remaining (%) 100 | 100 . . . . Volleys Fired 70 | . 51 17 1 1 Largest 2 | . 2 2 1 1 Hottest 250 | . 116 116 250 250 Shots Fired 127 | . 90 34 2 1 Gun 110 | . 83 27 . . Cannon 17 | . 7 7 2 1 Launcher . | . . . . . Special . | . . . . . Kinetic 10 | . . 10 . . Thermal 91 | . 64 24 2 1 Explosive . | . . . . . Electromagnetic 26 | . 26 . . . Robot Hit Streak 8 | . 8 4 . 1 Robot Miss Streak 4 | . 4 3 . 2 Penetration Max . | . . . . . Secondary Targets 3 | . . 3 . . Max Gunslinging Chain 1 | . . 1 . . Shots Hit Robots 80 | . 58 21 . 1 Core Hits 36 | . 25 9 . 2 Critical Kills . | . . . . . Critical Parts Destroyed . | . . . . . Critical Strikes 2 | . 1 1 . . Burn 2 | . 1 1 . . Melee Attacks . | . . . . . Impact . | . . . . . Slashing . | . . . . . Piercing . | . . . . . Sneak Attacks . | . . . . . Combat Hostiles . | . . . . . Follow-up Attacks . | . . . . . Damage Inflicted 1241 | . 854 303 . 84 Guns 980 | . 782 198 . . Cannons 204 | . 71 105 . 28 Explosions 56 | . . . . 56 Melee . | . . . . . Ramming 1 | . 1 . . . Kinetic 60 | . . 60 . . Thermal 926 | . 599 243 . 84 Explosive . | . . . . . Electromagnetic 254 | . 254 . . . Impact . | . . . . . Slashing . | . . . . . Piercing . | . . . . . Highest Corruption 7 | . 7 7 7 7 Average Corruption 6 | . 5 7 7 7 Corruption Purged . | . . . . . Corruption Blocked . | . . . . . Effects 102 | . 52 13 36 1 Message Errors 22 | . 11 2 9 . Matter Fused 18 | . 7 3 8 . Heat Flow Errors 18 | . 9 3 6 . Energy Discharges 15 | . 9 2 4 . Parts Rejected 2 | . 2 . . . Parts Fused 3 | . 2 1 . . Data Loss (minor) 9 | . 3 1 5 . Data Loss (major) 8 | . 4 1 3 . Misfires 2 | . 1 . 1 . Alerts 3 | . 2 . . 1 Weapon Failures 2 | . 2 . . . Overload Shots . | . . . . . Overflow Damage 15 | . 15 . . . Projectiles 15 | . 15 . . . Explosions . | . . . . . Melee . | . . . . . Knockbacks . | . . . . . Impact . | . . . . . Kinetic . | . . . . . Secondary . | . . . . . Self-Inflicted Damage . | . . . . . Shots . | . . . . . Rammed 1 | . 1 . . . Targets Rammed 1 | . 1 . . . Kicked . | . . . . . Crushed . | . . . . . Highest Temperature 759 | . 318 759 274 200 Average Temperature 138 | . 110 279 111 111 Received Heat Transfer 369 | . 285 84 . . Effects 14 | . 2 12 . . Shutdowns 2 | . . 2 . . Energy Bleed 3 | . 2 1 . . Interference 2 | . . 2 . . Matter Decay 2 | . . 2 . . Short Circuit 1 | . . 1 . . Damage (minor) 1 | . . 1 . . Damage (major) 3 | . . 3 . . Siege Activations . | . . . . . Robots Corrupted . | . . . . . Combat Hostiles . | . . . . . Parts Fried 3 | . 3 . . . Impact Corruptions . | . . . . . Robots Melted . | . . . . . Combat Hostiles . | . . . . . Parts Melted 6 | . 3 1 . 2 Heat Transferred 2671 | . 1628 643 . 400 Parts Sabotaged . | . . . . . Parts Stolen . | . . . . . Parts Stripped . | . . . . . Power Chain Reactions . | . . . . . Alert | -11 -10 -10 -10 -9 ------- Run | Yrd Mat Min Exi Min Peak Influence 190 | . 173 190 . 13 Initial 9 | . . 9 . . Average 58 | . 59 77 . 2 Maximum Alert Level . | . . . . . Low Security (%) 100 | 100 100 100 . 100 Level 1 . | . . . . . Level 2 . | . . . . . Level 3 . | . . . . . Level 4 . | . . . . . Level 5 . | . . . . . High Security . | . . . . . Max Security . | . . . . . Squads Dispatched 2 | . 2 . . . Investigation . | . . . . . Extermination . | . . . . . Reinforcement 2 | . 2 . . . Assault . | . . . . . Garrison . | . . . . . Intercept . | . . . . . Searches Triggered . | . . . . . Construction Impeded . | . . . . . Haulers Reinforced . | . . . . . Active Scanning Responses . | . . . . . Cargo Convoy Interrupts . | . . . . . Stealth | -11 -10 -10 -10 -9 --------- Run | Yrd Mat Min Exi Min Distress Signals 1 | . 1 . . . Communications Jammed . | . . . . . Distress Signals . | . . . . . Times Spotted 26 | . 16 8 . 2 Peak Tracking Total 6 | . 3 6 . 2 Tactical Retreats . | . . . . . Traps | -11 -10 -10 -10 -9 ------- Run | Yrd Mat Min Exi Min Traps Triggered 2 | . 2 . . . Indirectly . | . . . . . Trap Hack Attempts . | . . . . . Triggered . | . . . . . Disarmed . | . . . . . Reprogrammed . | . . . . . Reused . | . . . . . Traps Extracted . | . . . . . Installed . | . . . . . Triggered 1 | . . 1 . . Machines | -11 -10 -10 -10 -9 ---------- Run | Yrd Mat Min Exi Min Machines Disabled . | . . . . . Max in Single Turn . | . . . . . Machines Repaired . | . . . . . Machines Dismantled . | . . . . . Machines Sabotaged . | . . . . . Overloaded Fab Kills . | . . . . . Hacking | -11 -10 -10 -10 -9 --------- Run | Yrd Mat Min Exi Min Machines Accessed 12 | . 8 . 4 . Terminals 6 | . 6 . . . Fabricators . | . . . . . Repair Stations 1 | . 1 . . . Recycling Units 1 | . 1 . . . Scanalyzers . | . . . . . Garrison Access . | . . . . . Total Hacks 74 | . 25 . 49 . Successful 59 | . 10 . 49 . Failed 15 | . 15 . . . Catastrophic 2 | . 2 . . . Database Lockouts . | . . . . . Manual 12 | . 7 . 5 . Terminals 19 | . 19 . . . Fabricators . | . . . . . Repair Stations 3 | . 3 . . . Recycling Units 3 | . 3 . . . Scanalyzers . | . . . . . Garrison Access . | . . . . . Terminal Hacks 54 | . 5 . 49 . Record 50 | . 1 . 49 . Level Access Points 1 | . 1 . . . Branch Access Points 1 | . 1 . . . Alert Level 1 | . 1 . . . Unreport Threat 1 | . 1 . . . Fabricator Hacks . | . . . . . Repair Station Hacks 3 | . 3 . . . Scan Component 1 | . 1 . . . Repair 1 | . 1 . . . Refit 1 | . 1 . . . Recycling Unit Hacks 2 | . 2 . . . Report Inventory 1 | . 1 . . . Retrieve Components 1 | . 1 . . . Scanalyzer . | . . . . . Garrison Access Hacks . | . . . . . Unauthorized Hacks . | . . . . . Terminals . | . . . . . Fabricators . | . . . . . Repair Stations . | . . . . . Recycling Units . | . . . . . Scanalyzers . | . . . . . Garrison Access . | . . . . . Data Cores Recovered . | . . . . . Used . | . . . . . Hacking Detections 7 | . 7 . . . Full Trace Events 1 | . 1 . . . Feedback Events . | . . . . . Feedback Blocked . | . . . . . Robot Schematics Acquired . | . . . . . Robots Built . | . . . . . Authchips . | . . . . . Time . | . . . . . Total Robot Build Rating . | . . . . . Part Schematics Acquired . | . . . . . Parts Built . | . . . . . Authchips . | . . . . . Time . | . . . . . Total Part Build Rating . | . . . . . Parts Repaired 1 | . 1 . . . Time 26 | . 26 . . . Parts Recycled . | . . . . . Recycled Matter . | . . . . . Retrieved Matter . | . . . . . Retrieved Components 2 | . 2 . . . Parts Scanalyzed . | . . . . . Part Schematics Acquired . | . . . . . Parts Damaged . | . . . . . Bothacking | -11 -10 -10 -10 -9 ------------ Run | Yrd Mat Min Exi Min Used RIF Installer . | . . . . . Robots Hacked . | . . . . . Non-combat . | . . . . . Combat . | . . . . . Robot Hacks Applied . | . . . . . Relay Couplers Released . | . . . . . Fabnet Peak Effective % . | . . . . . Robots Rewired . | . . . . . Allies Hacked . | . . . . . Hacks Repelled . | . . . . . Allies | -11 -10 -10 -10 -9 -------- Run | Yrd Mat Min Exi Min Total Allies . | . . . . . Largest Group . | . . . . . Highest-Rated Group . | . . . . . Highest-Rated Ally . | . . . . . Total Orders . | . . . . . Ally Attacks . | . . . . . Total Damage . | . . . . . Kills . | . . . . . Allies Corrupted . | . . . . . Allies Melted . | . . . . . Intel | -11 -10 -10 -10 -9 ------- Run | Yrd Mat Min Exi Min Robot Analysis Total . | . . . . . Derelict Logs Recovered . | . . . . . Drone Launches . | . . . . . Drone Recoveries . | . . . . . Exploration | -11 -10 -10 -10 -9 ------------- Run | Yrd Mat Min Exi Min Turns Passed 3499 | 109 1884 330 1128 48 Spaces Moved 2234 | 63 1019 224 894 34 Core 9 | 5 3 . . 1 Treads 1079 | 58 1015 6 . . Legs . | . . . . . Wheels 1145 | . . 218 894 33 Hover 1 | . 1 . . . Flight . | . . . . . Fastest Speed 50 | 50 160 115 115 130 Average Speed 142 | 152 161 118 125 148 Slowest Speed 750 | 160 420 240 130 750 Overloaded Moves . | . . . . . Propulsion Burnouts . | . . . . . Robots Hopped . | . . . . . Cave-ins Triggered . | . . . . . Time Travels 1 | . . . 1 . Exploration Rate (%) 46 | 4 85 40 92 11 Regions Visited 4 Branch Regions 3 Pre-discovered Areas 1 | . . . 1 . Known Exits Taken 1 | . 1 . . . Unknown Exits Taken 3 | 1 . 1 1 . Scrap Searched 1 | . . 1 . . Spaces Dug . | . . . . . Terrain Destroyed 16 | . . . 8 8 Melee . | . . . . . Projectile . | . . . . . AOE 16 | . . . 8 8 Terrain Rammed . | . . . . . Walls Destroyed . | . . . . . Machines Disabled . | . . . . . Actions | -11 -10 -10 -10 -9 --------- Run | Yrd Mat Min Exi Min Total 2436 | 73 1170 256 901 36 Wait 55 | . 55 . . . Move 2230 | 62 1018 223 893 34 Hop . | . . . . . Pick Up 21 | 5 15 1 . . Fast Attach 23 | 6 12 3 2 . Attach 4 | . 1 3 . . Detach 4 | . 1 2 1 . Swap 9 | . 5 3 1 . Drop 19 | . 11 4 3 1 Fire 70 | . 51 17 1 1 Melee . | . . . . . Ram . | . . . . . Kick . | . . . . . Crush 1 | . 1 . . . Escape Stasis . | . . . . . Rewire . | . . . . . Trap . | . . . . . Miscellaneous . | . . . . . Route ------- -11/Scrapyard -10/Materials (discovered 4 exits: *Mat x3 / *Min) -10/Mines -10/Exiles -9/Mines History --------- Turn | Location | Event 17 | -11/Scrapyard | Discovered new exit (range 15) 110 | -11/Scrapyard | Entered Materials 318 | -10/Materials | Build established: Mutant 913 | -10/Materials | Discovered new exit (range 5) 1104 | -10/Materials | Core integrity fell below 50% 1175 | -10/Materials | Discovered new exit (range 12) 1307 | -10/Materials | Repaired Lgt. Treads 1406 | -10/Materials | Discovered new exit (range 12) 1411 | -10/Materials | Identified exit to Mines 1914 | -10/Materials | Identified exit to Materials 1994 | -10/Materials | Entered Mines 2273 | -10/Mines | Core integrity fell below 20% 2316 | -10/Mines | Deemed a non-threat by the Exiles lab entrance 2317 | -10/Mines | Discovered new exit (range 5) 2324 | -10/Mines | Entered Exiles 2367 | -10/Exiles | Met 8R-AWN 2400 | -10/Exiles | Met EX-HEX 2484 | -10/Exiles | Met EX-BIN 2513 | -10/Exiles | Aligned with FarCom system 2514 | -10/Exiles | Given EX-Vault access code 2625 | -10/Exiles | Opened EX-Vault 2632 | -10/Exiles | Found Prototype Device 2632 | -10/Exiles | Identified Chronowheel 2632 | -10/Exiles | Activated Chronowheel 2632 | -10/Exiles | Spacetime reconverged on an earlier point 2635 | -10/Exiles | Found Prototype Device 2635 | -10/Exiles | Identified Trap Reconfigurator 2647 | -10/Exiles | Found Prototype Energy Cannon 2647 | -10/Exiles | Identified Firepult 2682 | -10/Exiles | Warned to stay clear of 0b10 Research branches 2738 | -10/Exiles | Met EX-DEC 2751 | -10/Exiles | Learned location of Zion (-6) 2856 | -10/Exiles | Visited The Gauntlet 3428 | -10/Exiles | Discovered new exit (range 14) 3452 | -10/Exiles | Stole two prototypes: Firepult, Trap Reconfigurator 3452 | -10/Exiles | Entered Mines 3453 | -9/Mines | Assembled infested the area 3480 | -9/Mines | Received a Rocket Launcher from a helpful Derelict 3499 | -9/Mines | Met a Derelict bent on vengeance 3500 | -9/Mines | Destroyed by D-53 Grenadier with Mini Grenade Launcher Last Messages --------------- A8-52W(g): "You know what I say? NO!" A8-52W(g): "Everyone knows a good old rocket launcher goes a long way." A8-52W(g): "Need to get rid of a swarm? Done. Need a big hole in the wall? Done." A8-52W(g): "Need a small hole in the wall? Leave that to the mining laser wimps, I say!" A8-52W(g): "Would you like a rocket launcher? I know I would if I were you, so I'm going to lend you mine." A8-52W(g) slips back into the shadows. Dropped Lgt. Ion Engine. Mining Laser melted. Wheel melted. T-07 Excavator destroyed. C-30 ARC bursts open, deploying its payload. D-53 Grenadier unfolds itself. T-07 Excavator destroyed. The unstable cave ceiling collapses. Com. Wheel destroyed. Map ----- +----------------------------------------------------+ | ?????????????????????????????????????????????????? | | ?????????????????????????????????????????????????? | | ?????????????????????????????????????????????????? | | ?????????????????????????????????????????????????? | | ?????????????????????????????????????????????????? | | ?????????????????????????????????????????????????? | | ?????????????????????????????????????????????????? | | ?????????????????????????????????????????????????? | | ?????????????????????????????????????????????????? | | ?????????????????????????????????????????????????? | | ?????????????????????????????????????????????????? | | ?????????????????????????????????????????????????? | | ?????????????????????????????????????????????????? | | ?????????????????????????????????????????????????? | | ?????????????????????????????????????????????????? | | ?????????????????????????????????????????????????? | | ?????????????????#####???????????????????????????? | | ????????????????## ##??????????????????????????? | | ?????????????#### ###????????????????????????? | | ????????????## ##???????????????????????? | | ????????????# ####????????????????????? | | ????????????# ###??????????????????? | | ????????????# ####????????? #????? | | ????????????## #?????? #????? | | ?????????????# ## # ## #????? | | ?????????????# ?# @ = *]%d #?????? | | ?????????? d %" #????? | | ????????? # ## ;#"" #??????? | | ????????######## ###?####???##??????????? | | ???????????????# ###??????????????????????? | | ???????????????#### #????????????????????????? | | ??????????????????## #????????????????????????? | | ???????????????????# #????????????????????????? | | ???????????????????# ????????????????????????? | | ???????????????????## ???????????????????????? | | ????????????????????## ???????????????????????? | | ?????????????????????## ????????????????????????? | | ???????????????????????##????????????????????????? | | ?????????????????????????????????????????????????? | | ?????????????????????????????????????????????????? | | ?????????????????g?g?????????????????????????????? | | ?????????????????????????????????????????????????? | | ?????????????????????????????????????????????????? | | ?????????????????????????????????????????????????? | | ?????????????????????????????????????????????????? | | ?????????????????????????????????????????????????? | | ?????????????????????????????????????????????????? | | ?????????????????????????????????????????????????? | | ?????????????????????????????????????????????????? | | ?????????????????????????????????????????????????? | +----------------------------------------------------+ Best States ------------- Heat Dissipation 25 Energy Generation 10 Energy Capacity 250 Matter Stores 398 Matter Capacity 500 Sight Range 16 Terrain Scan Density 10 Armor Coverage 225 Evasion (%) 40 Targeting Accuracy 6 Recoil Reduction 2 Authchip Count 1 Item Schematics ----------------- None Robot Schematics ------------------ None Fabricated ------------ Nothing Alien Tech Used ----------------- None Achievements -------------- None Challenges ------------ None Game ------ Seed SapperSingularityMachine Manual? 0 Play Time 00:40:45 Cumulative 9.3 hours Start 2024.07.02 @ 13:04:30 End 2024.07.02 @ 13:55:46 Sessions 1 Manual Loads 0 Difficulty Rogue Special Mode None Game No. 9 Rogue 9 Adventurer 0 Explorer 0 Win Type - Total 0 Types 0/0/0/0/0/0/0/0/0 Lore% 14 Gallery% 19 Achievement% 16 Wizard Run 0 Options --------- Layout 1 ASCII 0 Keyboard 1 Movement Arrows Keybinds 0 Fullscreen 1 Font 24/Smallcaps Map View 50x35 Zoom Use 0% Tactical HUD 0 Map Filters NONE Filters NONE Steam 1 RUN: 6ad99ec8-2042-4037-8543-65c7068c7f3c